[Event "Hungarian Youth-ch U16 2022"]
[Site "Eger"]
[Date "2022.07.29"]
[Round "7.6"]
[White "Kovacs, Veronika"]
[Black "Buri, Petra Zsuzsanna"]
[Result "1-0"]
[ECO "A05"]
[WhiteElo "1633"]
[BlackElo "1784"]
[Annotator "NA RC COMBH"]
[PlyCount "71"]
[EventDate "2022.07.21"]
[EventType "tourn"]
[EventCountry "HUN"]
[SourceTitle "playchess.com"]
[Source "ChessBase"]
[SourceQuality "1"]
[TimeControl "40/5400+30:1800+30"]

1. Nf3 {[%emt 0:00:34]} Nf6 {[%emt 0:03:02]} 2. g3 {[%emt 0:00:42]} d6 {[%emt 0:00:49]} 3. Bg2 {[%emt 0:00:09]} Nbd7 {[%emt 0:01:09]} 4. O-O {[%emt 0:00:21]} e5 {[%emt 0:01:19]} 5. d3 {[%emt 0:00:37]} c6 {[%emt 0:02:11]} 6. c4 {[%emt 0:01:26]} Be7 {[%emt 0:03:01]} 7. Nc3 {[%emt 0:01:21]} O-O {[%emt 0:01:05]} 8. a3 {[%emt 0:05:42]} a5 {[%emt 0:04:33]} 9. Bd2 {[%emt 0:02:55]} Nc5 {[%emt 0:02:20]} 10. b4 {[%emt 0:04:40]} axb4 {[%emt 0:04:54]} 11. axb4 {[%emt 0:00:07]} Rxa1 {[%emt 0:00:18]} 12. Qxa1 {[%emt 0:00:04]} Nb3 {[%emt 0:00:50]} 13. Qb2 {[%emt 0:00:27]} Nxd2 {[%emt 0:00:42]} 14. Nxd2 {[%emt 0:00:14]} Be6 {[%emt 0:04:13]} 15. Ra1 {[%emt 0:11:39]} Qd7 {[%emt 0:02:30]} 16. Ra7 {[%emt 0:06:46]} Rb8 {[%emt 0:09:13]} 17. b5 {[%emt 0:06:28]} Qe8 {[%emt 0:04:35]} 18. Qa1 {[%emt 0:07:12]} d5 {[%emt 0:05:16]} 19. bxc6 {[%emt 0:28:02]} bxc6 {[%emt 0:01:24]} 20. cxd5 {[%emt 0:01:06]} cxd5 {[%emt 0:05:39]} 21. Nf3 {[%emt 0:02:37]} Bc5 {[%emt 0:10:33]} 22. Ra6 {[%emt 0:03:12]} Ng4 {[%emt 0:13:22]} 23. e3 {[%emt 0:02:48]} f6 {[%emt 0:05:48]} 24. d4 {[%emt 0:01:57]} exd4 {[%emt 0:05:41]} 25. Nxd4 {[%emt 0:01:05]} Bf7 {[%emt 0:01:48]} 26. Nxd5 {[%emt 0:03:20]} Rd8 {[%emt 0:00:34]} 27. Nc7 {[%emt 0:02:13]} Qd7 {[%emt 0:04:05]} 28. Ncb5 {[%emt 0:00:58]} Bc4 {[%emt 0:01:31]} 29. Bf1 {[%emt 0:02:45]} Bxb5 {[%emt 0:00:45]} 30. Bxb5 {[%emt 0:00:53]} Qd5 {[%emt 0:01:47]} 31. Bc6 {[%emt 0:01:27]} Qh5 {[%emt 0:00:18]} 32. h4 {[%emt 0:00:27]} Bxd4 {[%emt 0:00:20]} 33. exd4 {[%emt 0:00:38]} Qf5 {[%emt 0:00:49]} 34. Qa2+ {[%emt 0:00:21]} Kh8 {[%emt 0:00:28]} 35. Ra8 {[%emt 0:00:36]} Rc8 {[%emt 0:00:05]} 36. Bb7 {[%emt 0:00:30]} 1-0

[Event "Hungarian Youth-ch U16 2022"]
[Site "Eger"]
[Date "2022.07.29"]
[Round "7.7"]
[White "Harkai, Emma"]
[Black "Sipos, Stefania"]
[Result "1/2-1/2"]
[ECO "C41"]
[WhiteElo "1761"]
[BlackElo "1802"]
[Annotator "NA RC COMBH"]
[PlyCount "77"]
[EventDate "2022.07.21"]
[EventType "tourn"]
[EventCountry "HUN"]
[SourceTitle "playchess.com"]
[Source "ChessBase"]
[SourceQuality "1"]
[TimeControl "40/5400+30:1800+30"]

1. e4 {[%emt 0:00:33]} e5 {[%emt 0:00:40]} 2. Nf3 {[%emt 0:00:10]} d6 {[%emt 0:00:19]} 3. Bc4 {[%emt 0:00:58]} Nf6 {[%emt 0:00:38]} 4. d3 {[%emt 0:02:44]} Be7 {[%emt 0:02:46]} 5. h3 {[%emt 0:01:28]} Nbd7 {[%emt 0:03:35]} 6. Bxf7+ {[%emt 0:14:42]} Kxf7 {[%emt 0:09:25]} 7. Ng5+ {[%emt 0:00:18] [#]} Kg8 {[%emt 0:01:11]} ({Better is} 7... Kg6 $1 $17 8. f4 exf4) 8. Ne6 {[%emt 0:01:06]} Qe8 {[%emt 0:00:31]} 9. Nxc7 {[%emt 0:00:27] [#]} Qg6 $1 {[%emt 0:28:54]} 10. Nxa8 {[%emt 0:21:13]} Qxg2 {[%emt 0:01:48]} 11. Rf1 {[%emt 0:00:25]} Nc5 {[%emt 0:12:30]} 12. Be3 {[%emt 0:08:21]} (12. Nc7 $15) 12... Bxh3 {[%emt 0:02:46]} 13. Nd2 {[%emt 0:00:27] [#]} Ng4 $1 {[%emt 0:05:20]} 14. Bxc5 {[%emt 0:12:08]} dxc5 {[%emt 0:01:46]} 15. c3 $2 {[%emt 0:00:53]} (15. Qe2 Nh2 16. O-O-O Nxf1 17. Rxf1) 15... h6 {[%emt 0:13:30]} 16. Nc7 {[%emt 0:08:48]} Nh2 {[%emt 0:01:53]} 17. Qb3+ {[%emt 0:00:50]} Kh7 {[%emt 0:00:19]} 18. O-O-O {[%emt 0:00:52]} Nxf1 {[%emt 0:00:24]} 19. Nxf1 {[%emt 0:01:03]} Qxf2 {[%emt 0:00:53]} 20. Nd2 $19 {[%emt 0:01:58]} Bg5 {[%emt 0:00:25]} 21. Ne6 {[%emt 0:02:18]} Be3 {[%emt 0:01:46]} 22. Nc7 {[%emt 0:06:29]} Bg4 {[%emt 0:01:10]} 23. Nd5 {[%emt 0:00:46]} Bxd1 {[%emt 0:01:15]} 24. Qxd1 {[%emt 0:00:07]} Qxd2+ {[%emt 0:00:17]} 25. Qxd2 {[%emt 0:00:10]} Bxd2+ {[%emt 0:00:04]} 26. Kxd2 {[%emt 0:00:05]} h5 {[%emt 0:00:51]} 27. Ne3 {[%emt 0:00:25]} Rf8 {[%emt 0:00:38]} 28. Ke2 {[%emt 0:00:10]} g6 {[%emt 0:00:20]} 29. b4 {[%emt 0:00:27]} cxb4 {[%emt 0:00:18]} 30. cxb4 {[%emt 0:00:10]} Kh6 {[%emt 0:00:17]} 31. Nc4 {[%emt 0:00:26]} Re8 {[%emt 0:01:41]} 32. Kf3 {[%emt 0:01:17]} Kg5 {[%emt 0:00:33]} 33. Ne3 {[%emt 0:01:08]} Kh4 {[%emt 0:01:07]} 34. Kg2 {[%emt 0:00:30]} g5 {[%emt 0:00:59]} 35. Nf5+ {[%emt 0:01:09]} Kg4 {[%emt 0:00:45]} 36. Ne3+ {[%emt 0:00:15]} Kf4 {[%emt 0:02:27]} 37. Nd5+ {[%emt 0:00:17]} Kg4 {[%emt 0:00:09]} 38. Ne3+ {[%emt 0:00:08]} Kf4 {[%emt 0:00:42]} 39. Nd5+ {[%emt 0:00:10]} 1/2-1/2

[Event "Hungarian Youth-ch U16 2022"]
[Site "Eger"]
[Date "2022.07.30"]
[Round "8.1"]
[White "Kocsmar, Akos"]
[Black "Tran, David"]
[Result "0-1"]
[ECO "E71"]
[WhiteElo "2061"]
[BlackElo "2090"]
[Annotator "TA"]
[PlyCount "36"]
[EventDate "2022.07.21"]
[EventType "tourn"]
[EventCountry "HUN"]
[SourceTitle "playchess.com"]
[Source "ChessBase"]
[SourceQuality "1"]
[TimeControl "40/5400+30:1800+30"]

{[%evp 13,36,31,45,39,39,39,61,33,71,53,96,93,92,92,96,80,387,85,97,94,91,88,95,-29998,-29999]} 1. d4 {[%emt 0:00:34]} Nf6 {[%emt 0:00:34]} 2. c4 {[%emt 0:00:03]} g6 {[%emt 0:00:04]} 3. Nc3 {[%emt 0:00:05]} Bg7 {[%emt 0:00:04]} 4. e4 {[%emt 0:00:03]} d6 {[%emt 0:00:04]} 5. h3 {[%emt 0:00:02]} O-O {[%emt 0:02:04]} 6. Be3 {[%emt 0:00:07]} e5 {[%emt 0:00:30]} 7. d5 {[%emt 0:00:04]} a5 {[%emt 0:00:18]} 8. g4 {[%emt 0:00:05] E71: King's Indian: 4 e4 d6 5 h3.} Na6 {[%emt 0:01:00]} 9. Nge2 {[%emt 0:00:07]} Nd7 {[%emt 0:00:34]} 10. Ng3 {[%emt 0:01:35] White is slightly better.} Ndc5 {[%emt 0:04:46]} 11. h4 {[%emt 0:00:57][%cal Bh3h4,Bh4h5][%mdl 32]} f5 {[%emt 0:10:30]} 12. gxf5 {[%emt 0:00:10]} gxf5 {[%emt 0:00:01]} 13. exf5 {[%emt 0:00:08]} Bxf5 {[%emt 0:00:14] [#]} 14. h5 $146 {[%emt 0:01:09]} ({Predecessor:} 14. Nxf5 Rxf5 15. h5 Qf6 16. Qg4 Kf7 17. h6 Bh8 18. Bh3 Rf4 19. Bxf4 exf4 20. O-O-O {1-0 (27) Cuenca Jimenez,J (2552)-Gemy Vargas,J (2381) Mexico City 2022}) 14... Qf6 {[%emt 0:02:48][%mdl 8192]} (14... Qd7 $16 {is more resistant.}) 15. Qd2 $2 {[%emt 0:04:54]} (15. h6 $18 {is the precise move to win.}) 15... h6 {[%emt 0:06:04]} (15... Bg4 $2 16. h6 $18) 16. Nxf5 {[%emt 0:01:05]} Qxf5 {[%emt 0:00:57] [#]} 17. O-O-O $1 {[%emt 0:00:13] Strongly threatening Bh3.} Nb4 {[%emt 0:04:51][%cal Ob4a2] ( -> ...Nxa2+!)} 18. Be2 $2 {[%emt 0:05:18][%mdl 8192] [#]} (18. Rg1 $2 {[#] is a self mate.} Nxa2+ $1 {[%mdl 512]} 19. Nxa2 Nb3#) (18. Bxc5 $16 dxc5 19. Rg1) 18... Nxa2+ $1 {[%emt 0:00:24][%mdl 512] Weighted Error Value: White=0.83/Black=0.72} 0-1

[Event "Hungarian Youth-ch U16 2022"]
[Site "Eger"]
[Date "2022.07.30"]
[Round "8.2"]
[White "Borzsei, Andras"]
[Black "Muranyi, Peter"]
[Result "0-1"]
[ECO "A40"]
[WhiteElo "2002"]
[BlackElo "2018"]
[Annotator "TA"]
[PlyCount "66"]
[EventDate "2022.07.21"]
[EventType "tourn"]
[EventCountry "HUN"]
[SourceTitle "playchess.com"]
[Source "ChessBase"]
[SourceQuality "1"]
[TimeControl "40/5400+30:1800+30"]

{[%evp 11,66,8,18,14,13,25,29,25,22,-16,10,25,14,15,37,10,0,0,0,-17,0,-72,-67,-82,-85,-74,-40,-46,-47,-126,-120,-169,-30,-101,-102,-174,-160,-266,-264,-402,-400,-326,-279,-287,-281,-259,0,-297,-91,-29985,-29986,-29986,-29984,-29993,-29994,-29997,-29997]} 1. d4 {[%emt 0:00:33][%cal Bd2d4,Bd4d5][%mdl 32]} b6 {[%emt 0:01:41]} 2. c4 {[%emt 0:00:10]} e6 {[%emt 0:00:53]} 3. a3 {[%emt 0:00:36]} Bb7 {[%emt 0:00:14]} 4. Nc3 {[%emt 0:00:17]} f5 {[%emt 0:00:29]} 5. Nf3 {[%emt 0:00:15]} Nf6 {[%emt 0:00:14]} 6. d5 {[%emt 0:00:23]} Bd6 {[%emt 0:07:57]} 7. g3 {[%emt 0:01:39] A40: Unusual replies to 1 d4.} Na6 {[%emt 0:03:36]} 8. b4 {[%emt 0:00:44][%cal Bb2b4,Bb4b5][%mdl 32] Against Nc5} c6 {[%emt 0:08:43]} 9. dxe6 {[%emt 0:19:43] White has an edge.} dxe6 {[%emt 0:00:11] [#]} 10. Qb3 $146 {[%emt 0:00:18]} (10. Bg2) ({Predecessor:} 10. Bg2 c5 11. O-O O-O 12. b5 Nb8 13. Bf4 Bxf4 14. Qxd8 Rxd8 15. gxf4 Kf8 16. Rfd1 Rxd1+ 17. Rxd1 {½-½ (76) Prohaszka,P (2572)-Lizak,P (2408) Hungary 2014}) 10... Qe7 {[%emt 0:12:56]} 11. Bg2 {[%emt 0:02:39]} O-O {[%emt 0:00:44]} 12. O-O {[%emt 0:02:22]} c5 {[%emt 0:05:13][%cal Rc5b4] Prevents Nd4.} 13. b5 {[%emt 0:00:30]} Nc7 {[%emt 0:00:07]} 14. a4 {[%emt 0:06:34]} e5 {[%emt 0:04:49][%cal Be6e5,Be5e4][%mdl 32]} 15. a5 {[%emt 0:06:44]} Ne6 {[%emt 0:26:12]} 16. a6 {[%emt 0:06:13]} (16. Nh4 $11 {keeps the balance.} Nd4 17. Qd1) 16... Bxf3 $17 {[%emt 0:00:11]} 17. Bxf3 {[%emt 0:06:13]} e4 {[%emt 0:00:08]} 18. Bg2 {[%emt 0:02:06]} Nd4 {[%emt 0:00:37]} (18... Rad8) 19. Qd1 {[%emt 0:04:39]} Be5 {[%emt 0:02:20]} 20. Ra3 {[%emt 0:27:09]} (20. Bg5 $15) 20... Rad8 {[%emt 0:04:07][%cal Od4b5] Black is more active.} 21. Qa4 {[%emt 0:00:10]} (21. Bg5 $17) 21... Qd6 {[%emt 0:09:58]} (21... Qf7 $19 {Strongly threatening ...Qh5.} 22. Ra2 Ne6) 22. Kh1 {[%emt 0:03:59]} (22. Bg5 $1 $11 {remains equal.}) 22... h6 {[%emt 0:02:15]} 23. f4 {[%emt 0:03:17]} (23. Ra2 $17) 23... exf3 $1 $19 {[%emt 0:00:15]} 24. Bxf3 {[%emt 0:00:16]} (24. exf3 $17 Bxg3 25. f4) 24... Bxg3 {[%emt 0:03:54]} 25. hxg3 {[%emt 0:01:25]} (25. Nd5 {might work better.} Bxh2 26. Nxf6+ Rxf6 27. Bd5+ Kh8 28. Qd1) 25... Qxg3 {[%emt 0:00:08]} 26. Nd5 {[%emt 0:01:26]} Qh4+ {[%emt 0:00:43]} 27. Kg2 {[%emt 0:00:40] And now Rh1 would win.} Ne4 {[%emt 0:01:37]} 28. Bxe4 {[%emt 0:01:52]} fxe4 $40 {[%emt 0:00:06][%mdl 128] White needs to defend precisely.} (28... Qxe4+ $19 29. Raf3 Rd6) 29. Bf4 $2 {[%emt 0:00:11][%mdl 8192]} (29. Qd1 $11 {and White has nothing to worry.}) 29... Nxe2 $2 {[%emt 0:01:03] Chess con chili.} ({Inferior is} 29... Qg4+ 30. Rg3 Qxe2+ 31. Rf2 $11) (29... e3 $19 {[%cal Od8d5] and Black stays clearly on top. ( -> ...Rxd5!)} 30. Qd1 {[#]} Rxd5 $1 {[%mdl 512]} 31. cxd5 Rxf4 32. Rxf4 Qxf4) 30. Rh3 $2 {[%emt 0:01:44][%mdl 8192] [#] Now White is beyond hope.} Qg4+ {[%emt 0:00:39] Black mates.} 31. Kh2 {[%emt 0:00:37]} Nxf4 {[%emt 0:00:16][%csl Gf4][%cal Rg4g2]} 32. Ne7+ {[%emt 0:00:22]} Kh7 {[%emt 0:00:15][%csl Gf4][%cal Rg4g2]} 33. Rg3 {[%emt 0:00:38]} Rd2+ {[%emt 0:00:10] Weighted Error Value: White=0.71/Black=0.38} 0-1

[Event "Hungarian Youth-ch U16 2022"]
[Site "Eger"]
[Date "2022.07.30"]
[Round "8.4"]
[White "Pasztor, Balazs"]
[Black "Szikszai, Bertalan"]
[Result "1/2-1/2"]
[ECO "B45"]
[WhiteElo "2336"]
[BlackElo "2153"]
[Annotator "TA"]
[PlyCount "35"]
[EventDate "2022.07.21"]
[EventType "tourn"]
[EventCountry "HUN"]
[SourceTitle "playchess.com"]
[Source "ChessBase"]
[SourceQuality "1"]
[TimeControl "40/5400+30:1800+30"]

{[%evp 10,35,14,0,33,20,16,20,25,16,14,12,7,24,95,59,70,18,54,-33,-30,-45,-18,-22,-24,-26,0,-418]} 1. e4 {[%emt 0:02:03]} c5 {[%emt 0:00:46]} 2. Nc3 {[%emt 0:00:07]} Nc6 {[%emt 0:00:35]} 3. Nf3 {[%emt 0:00:11]} e6 {[%emt 0:04:37]} 4. d4 {[%emt 0:01:18]} cxd4 {[%emt 0:00:16]} 5. Nxd4 {[%emt 0:00:07]} Nf6 {[%emt 0:01:06]} 6. a3 {[%emt 0:01:51]} e5 {[%emt 0:11:07] B45: Sicilian Four Knights.} 7. Ndb5 {[%emt 0:07:20] Black must now prevent Bg5.} d6 $1 {[%emt 0:04:52] And now ...a6 would win.} 8. Nd5 {[%emt 0:01:13]} Nxd5 {[%emt 0:02:23]} 9. exd5 {[%emt 0:00:17]} Ne7 {[%emt 0:01:27]} 10. c4 {[%emt 0:03:46] Qa4 is the strong threat.} Nf5 {[%emt 0:08:49]} 11. Bd3 {[%emt 0:12:50] [#] Threatens to win with Qa4.} a6 $146 {[%emt 0:01:54] [#]} (11... g6 $11 {remains equal.}) ({Predecessor:} 11... Be7 12. O-O a6 13. Nc3 O-O 14. Kh1 Nh4 15. f4 f5 16. Qc2 e4 17. Be2 g5 {1-0 (42) Ganerdene,S (2427)-Diakonova,E (2188) Moscow 2020}) 12. Qa4 $1 $16 {[%emt 0:12:23] aiming for Nxd6+.} Ke7 {[%emt 0:10:41]} 13. c5 {[%emt 0:10:12] White is more active.} (13. Nc3 $14) 13... dxc5 $11 {[%emt 0:16:56]} 14. Bxf5 {[%emt 0:17:55]} (14. O-O $14) 14... Bxf5 $15 {[%emt 0:00:55]} 15. d6+ {[%emt 0:00:28]} Kd7 {[%emt 0:00:53]} 16. Nc7+ {[%emt 0:03:31]} b5 {[%emt 0:02:35]} 17. Qb3 {[%emt 0:02:46] The board is on fire.} Bxd6 {[%emt 0:02:39]} (17... c4 $5 {[%cal Rc4b3]} 18. Qf3 {[#]} Bxd6 $1 19. Nxa8 Ke6 $15) 18. Nxa6 $2 {[%emt 0:07:38][%mdl 40960] Weighted Error Value: White=0.23 (precise) /Black=0.14 (very precise) . An unexpected result.} 1/2-1/2

[Event "Hungarian Youth-ch U16 2022"]
[Site "Eger"]
[Date "2022.07.30"]
[Round "8.5"]
[White "Harkai, Emma"]
[Black "Bodo, Boglarka"]
[Result "*"]
[ECO "B00"]
[WhiteElo "1761"]
[BlackElo "1722"]
[Annotator "NA RC COMBH"]
[PlyCount "25"]
[EventDate "2022.07.21"]
[EventType "tourn"]
[EventCountry "HUN"]
[SourceTitle "playchess.com"]
[Source "ChessBase"]
[SourceQuality "1"]
[TimeControl "40/5400+30:1800+30"]

1. e4 {[%emt 0:00:34]} e5 {[%emt 0:05:56]} 2. Nf3 {[%emt 0:00:11]} Nc6 {[%emt 0:00:06]} 3. Bc4 {[%emt 0:00:06]} Bc5 {[%emt 0:00:15]} 4. c3 {[%emt 0:00:14]} Nf6 {[%emt 0:01:40]} 5. d3 {[%emt 0:00:26]} d6 {[%emt 0:00:52]} 6. a4 {[%emt 0:02:12]} a5 {[%emt 0:04:01]} 7. O-O {[%emt 0:04:02]} h6 {[%emt 0:07:24]} 8. Ba2 {[%emt 0:01:41]} O-O {[%emt 0:05:43]} 9. Nbd2 {[%emt 0:02:52]} Bg4 {[%emt 0:02:53]} 10. h3 {[%emt 0:03:04]} Bh5 {[%emt 0:01:50]} 11. Re1 {[%emt 0:02:50]} Qd7 {[%emt 0:04:53]} 12. Nc4 {[%emt 0:02:34]} Ne7 {[%emt 0:05:03]} 13. Be3 {[%emt 0:04:44]} *

[Event "Hungarian Youth-ch U16 2022"]
[Site "Eger"]
[Date "2022.07.30"]
[Round "8.5"]
[White "Bodo, Boglarka"]
[Black "Buri, Petra Zsuzsanna"]
[Result "0-1"]
[ECO "C54"]
[WhiteElo "1722"]
[BlackElo "1784"]
[Annotator "NA COMBH"]
[PlyCount "130"]
[EventDate "2022.07.21"]
[EventType "tourn"]
[EventCountry "HUN"]
[SourceTitle "playchess.com"]
[Source "ChessBase"]
[SourceQuality "1"]
[TimeControl "40/5400+30:1800+30"]

1. e4 {[%emt 0:00:34]} e5 {[%emt 0:05:56]} 2. Nf3 {[%emt 0:00:11]} Nc6 {[%emt 0:00:06]} 3. Bc4 {[%emt 0:00:06]} Bc5 {[%emt 0:00:15]} 4. c3 {[%emt 0:00:14]} Nf6 {[%emt 0:01:40]} 5. d3 {[%emt 0:00:26]} d6 {[%emt 0:00:52]} 6. a4 {[%emt 0:02:12]} a5 {[%emt 0:04:01]} 7. O-O {[%emt 0:04:02]} h6 {[%emt 0:07:24]} 8. Ba2 {[%emt 0:01:41]} O-O {[%emt 0:05:43]} 9. Nbd2 {[%emt 0:02:52]} Bg4 {[%emt 0:02:53]} 10. h3 {[%emt 0:03:04]} Bh5 {[%emt 0:04:23]} 11. Re1 {[%emt 0:02:50]} Qd7 12. Nc4 Ne7 {[%emt 0:05:03]} 13. Be3 {[%emt 0:04:44]} Bxe3 {[%emt 0:04:30]} 14. Nxe3 {[%emt 0:00:23]} Bg6 {[%emt 0:02:43]} 15. Nh4 {[%emt 0:01:44]} Bh7 {[%emt 0:03:48]} 16. Qf3 {[%emt 0:04:39]} Ng6 {[%emt 0:06:28]} 17. Nxg6 {[%emt 0:07:36]} Bxg6 18. Qg3 Kh8 {[%emt 0:01:00]} 19. Ng4 {[%emt 0:03:06]} Nxg4 {[%emt 0:01:55]} 20. Qxg4 {[%emt 0:05:01]} Qxg4 {[%emt 0:04:58]} 21. hxg4 {[%emt 0:03:03]} f6 {[%emt 0:03:56]} 22. f3 c6 {[%emt 0:01:02]} 23. c4 {[%emt 0:01:36]} Rfd8 {[%emt 0:01:42]} 24. Rac1 {[%emt 0:00:57]} Bf7 {[%emt 0:01:02]} 25. Kf2 {[%emt 0:01:46]} Rd7 {[%emt 0:00:54]} 26. Ke3 {[%emt 0:01:01]} Rad8 {[%emt 0:00:50]} 27. Red1 {[%emt 0:02:01]} d5 {[%emt 0:01:28]} 28. cxd5 {[%emt 0:01:10]} cxd5 {[%emt 0:00:17]} 29. Bxd5 {[%emt 0:01:17]} Bxd5 {[%emt 0:00:29]} 30. exd5 {[%emt 0:00:07]} Rxd5 {[%emt 0:00:06]} 31. Rc3 {[%emt 0:01:07]} b5 {[%emt 0:05:05]} 32. axb5 {[%emt 0:05:04]} Rxb5 {[%emt 0:00:16]} 33. Rd2 {[%emt 0:00:09]} Rdb8 {[%emt 0:01:48]} 34. Rcc2 {[%emt 0:01:54]} Rb4 {[%emt 0:00:57]} 35. Rf2 {[%emt 0:01:51]} Kh7 {[%emt 0:01:17]} 36. Rc5 {[%emt 0:01:42]} R8b5 {[%emt 0:09:00]} 37. Rxb5 {[%emt 0:00:42]} Rxb5 {[%emt 0:00:07]} 38. Rc2 {[%emt 0:00:15]} Kg6 {[%emt 0:02:23]} 39. g3 {[%emt 0:04:04]} h5 {[%emt 0:04:03]} 40. gxh5+ {[%emt 0:00:00]} Kxh5 {[%emt 0:00:00]} 41. Rh2+ {[%emt 0:00:48]} Kg5 {[%emt 0:00:52]} 42. g4 {[%emt 0:01:45]} g6 {[%emt 0:01:59]} 43. Rc2 {[%emt 0:03:42]} f5 {[%emt 0:05:56]} 44. Rg2 {[%emt 0:05:03]} Kf6 {[%emt 0:03:09]} 45. gxf5 {[%emt 0:03:44]} gxf5 {[%emt 0:00:25]} 46. f4 {[%emt 0:03:43]} Rb4 {[%emt 0:02:17]} 47. fxe5+ {[%emt 0:01:26]} Kxe5 {[%emt 0:00:07]} 48. Rc2 {[%emt 0:01:23]} f4+ {[%emt 0:03:44]} 49. Kf3 {[%emt 0:00:45]} Kd4 {[%emt 0:01:32]} 50. Rd2 {[%emt 0:01:02]} Rb3 {[%emt 0:00:35]} 51. Kxf4 {[%emt 0:00:35]} Rxd3 {[%emt 0:00:26]} 52. Rc2 {[%emt 0:01:06]} a4 {[%emt 0:07:57]} 53. Rc8 {[%emt 0:03:40]} Rb3 {[%emt 0:01:16]} 54. Rc2 {[%emt 0:00:29]} Rb4 {[%emt 0:00:49]} 55. Kf3 {[%emt 0:00:18]} Kd3 {[%emt 0:01:36]} 56. Rg2 {[%emt 0:02:26]} Kc4 {[%emt 0:02:02]} 57. Ke3 {[%emt 0:01:15]} Kb3 {[%emt 0:00:39]} 58. Kd3 {[%emt 0:00:35]} Ka2 {[%emt 0:00:28]} 59. Rc2 {[%emt 0:07:06]} Rxb2 {[%emt 0:01:50]} 60. Kc3 {[%emt 0:00:50]} a3 {[%emt 0:00:14]} 61. Rc1 {[%emt 0:00:43]} Rb3+ {[%emt 0:05:02]} 62. Kc4 {[%emt 0:00:15]} Kb2 {[%emt 0:00:57]} 63. Rg1 {[%emt 0:00:41]} Rc3+ {[%emt 0:00:20]} 64. Kb4 {[%emt 0:00:54]} a2 {[%emt 0:00:26]} 65. Rh1 {[%emt 0:01:17]} Rc2 {[%emt 0:00:15]} 0-1